{"text_format":"1","workbook":"xlsx","n_sheets":3,"sheets":["Pivot","Log","Types"],"not_rendered":{"charts":0,"images":0,"macros":1,"external_links":0,"defined_names":1,"comments":0,"pivot_tables":1},"unopened":[],"bounds":{"document_bytes":16777216,"sheet_cells":100000,"rows_first":2000,"rows_last":500,"rows_between":2000,"halvings":0,"cell_chars":16384,"cell_head_chars":4096},"cells_cut":0,"cells_raw":0,"read":"whole","date_system":"1900"}

{"sheet":"Pivot","index":0,"n_rows":21,"n_cols":8,"rows_kept":21,"cut":false,"hidden":false,"merged":[]}
[null,"LSST Incidents and Accidents"]
[null,"June 2010 to June 2019"]
[null," "]
[null,null,null,"LSST","CONTRACTORS","SUMMIT SITE","OTHERS","Totals"]
[null,"Incidents","PEOPLE",null,2,null,null,2]
[null,null,"EQUIPMENT",null,2,1,null,3]
[null,null,"PROCESS",1,null,null,null,1]
[null,"Incidents Total",null,1,4,1,null,6]
[]
[null,"Accidents","PEOPLE",6,13,11,1,31]
[null,null,"EQUIPMENT",7,18,2,null,27]
[null,"Accidents Total",null,13,31,13,1,58]
[]
[null,"Totals",null,14,35,14,1,64]
[null,"Note: Accidents PEOPLE - 8 Medical Cases and 20 First Aids"]
[null,"Safety is the control of accidental loss."]
[null,"An accident is an undesired event that results in harm to people, damage to property or loss to process."]
[null,"Accidents result from contact with a substance or source of energy above the threshold limit of the body or structure."]
[null,"An incident is an undesired event which, under slightly different circumstances could of cause an accident."]
[null,"LSST - includes AURA, SLAC personnel and equipment no matter who caused it."]
[null,"Others- AURA, NOAO and its contractors providing service to LSST"]

{"sheet":"Log","index":1,"n_rows":395,"n_cols":10,"rows_kept":395,"cut":false,"hidden":false,"merged":[]}
["Number","Description","Reportable","Date","Type","Owner","Affected","Docushare Link","Description"]
[1,"M1M3 damage during polishing",null,"2010-06-01","Accident","CONTRACTORS","EQUIPMENT","001) M1M3 Damage Accident June 2010","files photos and reports of event and repair"]
[{"$f":"IF(B3<>\"\",A2+1,\"\")","v":2},"The discovery of an unfired blasting cap at the construction site.",null,"2013-10-20","Incident","LSST","PROCESS","002) 10 20 2013 Informe Investigacion Incidente LSST","discovery of an unfired blasting cap at the construction site"]
[3,"The discovery of missing lug nuts on a contractor vehicle",null,"2015-01-12","Incident","CONTRACTORS","EQUIPMENT","003) 01 12 2015 vehicle incident","missing lug nuts",1]
[4,"Contractor driving on the wrong side of the road  violation",null,"2015-01-13","Incident","CONTRACTORS","PEOPLE","004) 01 13 2015 vehicle incident","driving violation",1]
[5,"Vehicle is damaged by running into berm",null,"2015-01-27","Accident","CONTRACTORS","EQUIPMENT","005) 01 27 2015 minor vehicle accident","vehicle runs into berm",1]
[6,"Improper dump truck operation",null,"2015-02-05","Incident","SUMMIT SITE","EQUIPMENT","006) 02 05 2015 summit site incident","improper dump truck operation",1]
[7,"Drone mishap by LSST employee causing injury to fingers","first aid","2016-01-08","Accident","LSST","PEOPLE","007) 01 08 2016 minor injury accident","drone mishap causing injury to fingers"]
[8,"Light plant fell off truck causing minor damage to light plant",null,"2016-02-16","Accident","CONTRACTORS","EQUIPMENT","008) 02 16 2016 minor vehicle accident","light plant fell off truck causing minor damage to light plant",1]
[9,"Camera L2 damage accident small fracture",null,"2016-04-27","Accident","CONTRACTORS","EQUIPMENT","009) 04 27 2016 camera L2 damage accident","small fracture identified in lens, cause unknown"]
[10,"On the public highway \"Ruta D\" contractor vehicle struck a horse - no human injuries",null,"2016-05-27","Accident","CONTRACTORS","EQUIPMENT","010) 05 27 2016 contractor auto accident","Public highway \"Ruta D\"vehicle struck a horse - no human injuries",1]
[11,"Small metal piece strikes contractors cheek and causes discomfort","first aid","2016-05-28","Accident","SUMMIT SITE","PEOPLE","011) 05 28 2016 summit contractor minor accident","small metal piece hit cheek and causes discomfort"]
[12,"SLAC Camera L2 damage accident concial fracture",null,"2016-06-27","Accident","CONTRACTORS","EQUIPMENT","012) 06 27 2016 camera L2 damage - accident","4mm conical fracture 15mm from edge of lens"]
[13,"Bracing for concrete form fell and caused contusion to contractors shoulder","first aid","2016-06-30","Accident","SUMMIT SITE","PEOPLE","013) 06 30 2016 summit minor injury","Contusion to shoulder from bracing"]
[14,"Contractor dropped rock and cause contusion to foot (pain medicine prescribed)","medical","2016-08-08","Accident","SUMMIT SITE","PEOPLE","014) 08 08 2016 summit minor injury","contusion to foot by rock"]
[15,"Employee tripped on stairs causing contusions","first aid","2016-08-25","Accident","LSST","PEOPLE","015) 08 25 2016 minor office injury accident","tripped on stairs causing contusions"]
[16,"Contractor got dust in eye causing temp irritation (safety glasses were worn)","first aid","2016-09-01","Accident","SUMMIT SITE","PEOPLE","016) 09 01 2016 summit minor injury","dust in eye (safety glasses were worn)"]
[17,"SLAC Ball cup broken while grinding of the camera grid",null,"2016-09-20","Accident","CONTRACTORS","EQUIPMENT","017) 09 20 2016 camera grid damage accident","ball cup broken while grinding"]
[18,"LSST employee tripped in hallway causing sprained right ankle","medical","2016-09-21","Accident","LSST","PEOPLE","018) 09 21 2016 minor office injury accident","tripped in hallway sprained right ankle"]
[19,"NOAO bus driver tripped and fell on stairs at Pachon and  suffered a contusion","medical","2016-11-25","Accident","OTHERS","PEOPLE","019) 11 25 2016 bus driver accident","NOAO bus driver tripped on stairs at Pachon"]
[20,"Sub-contractor employee of Besalco suffered medical injury (not work related)",null,"2016-11-25","Accident","SUMMIT SITE","PEOPLE","020) 11 25 2016 contractor medical injury, twisted right knee","sub-contractor employee of Besalco medical injury (not work related)"]
[21,"Besalco driver loses control of vehicle and causes damage to vehicle",null,"2016-11-26","Accident","CONTRACTORS","EQUIPMENT","021) 11 26 2016 auto accident","Besalco driver loses control of vehicle and causes damage to vehicle",1]
[22,"Contractor suffered minor cut on face from a sharp edge of a concrete form","first aid","2017-02-10","Accident","SUMMIT SITE","PEOPLE","022) 02 10 2017 contractor medical injury","minor cut to face from a sharp edge of a concrete form"]
[23,"Contractor lost control of vehicle causing damage to vehicle and guard rail",null,"2017-02-20","Accident","CONTRACTORS","EQUIPMENT","023) 02 20 2017 contract vehicle accident","damage to vehicle and guard railing",1]
[24,"SLAC Camera minor damage to the exterior area of the L1 lens",null,"2017-02-28","Accident","CONTRACTORS","EQUIPMENT","024) 02 28 2017 L1 damage - accident","minor damage to the exterior area of the lens"]
[25,"Ceiling tiles detached from supporting structure at base facility",null,"2017-04-06","Accident","LSST","EQUIPMENT","025) 04 06 2017 ceiling tile accident at base facility","ceiling tiles detached from supporting structure"]
[26,"SLAC Loss of 3 camera electronic boards while baking in vacuum chamber",null,"2017-04-20","Accident","LSST","EQUIPMENT","026) 04 20 2017 camera - loss of 3 computer boards","failiure to control temperature in vacuum chamber"]
[27,"Contractor fell off ladder at the summit construction site","first aid","2017-04-25","Accident","SUMMIT SITE","PEOPLE","027) 04 21 2017 summit contractor medical injury, briused knee","fell off ladder and bruised knee and elbow"]
[28,"Contractor jumped out of backhoe after losing control -lost time - 5 days","medical","2017-05-28","Accident","CONTRACTORS","PEOPLE","028) 05 28 2017 summit contractor - backhoe accident","Laceration to the head of the operator and required extraction of backhoe",1]
[29,"No injuries, near miss incident",null,"2017-07-07","Incident","CONTRACTORS","EQUIPMENT","029) 07 07 2017 summit contractor - contract vehicle incident","a near miss incident where two vehicles nearly collided at slow speed",1]
[30,"Damage to vehicle and condition of horse unknown",null,"2017-07-08","Accident","CONTRACTORS","EQUIPMENT","030) 07 08 2017 summit contractor - contractor vehicle accident with horse ","front end of contractor vehicle was damage by a horse that jumped into path of vehicle",1]
[31,"Contractor overheated vehicle engine, opened radiator cap while hot","first aid","2017-08-23","Accident","SUMMIT SITE","PEOPLE","031) 08 23 2017 summit contractor medical injury.","superfical burn to right arm by radiator fluid"]
[32,"Contractor poistioned grinder wrongly and nicked his finger with grinding wheel","first aid","2017-08-28","Accident","SUMMIT SITE","PEOPLE","032) 08 28 2017 summit contractor medical injury.","small cut to middle finger inproperly using a handheld grinder"]
[33,"Cut by a burr on the steelwork that he was putting together","first aid","2017-10-10","Accident","LSST","EQUIPMENT","033) 10 24 2017 Summit contractor injury","small cut to middle finger"]
[34,"Employee was backing out of parking lot and hit another parked vehicle",null,"2017-12-11","Accident","SUMMIT SITE","EQUIPMENT","34) 12 11 2017 Base Facility Parking Lot Accident","minor damage to two vehicles, one parked in parking lot",1]
[35,"Sub-contractor (MetalTech) of Besalco rolled a vehicle, minor injuries, damage to vehicle","first aid","2018-01-21","Accident","CONTRACTORS","PEOPLE","035) 01 21 2018 summit contractor - vehicle accident","three with minor bruising, vehicle dented",1]
[36,"Something in eye, was washed out and nothing found - returned to work","first aid","2018-01-30","Accident","SUMMIT SITE","PEOPLE","036) 01 30 2018 summit contractor injury","no lasting injury"]
[37,"Sub-contractor (AyC) rolled a vehicle, minor injuries, damage to vehicle","first aid","2018-01-31","Accident","CONTRACTORS","PEOPLE","037) 01 31 2018 summit contractor - vehicle accident","two with minor bruising, vehicle dented",1]
[38,"Contractor Ben L. employee hit right hand with a mallet while tearing down a wooden box","first aid","2018-02-22","Accident","SUMMIT SITE","PEOPLE","38) 02 22 2018 Summit contractor injury","small cut on right ring finger"]
[39,"Contractor Rencoret employee was tearing down a cardboard box and cut left middle finger","first aid","2018-02-22","Accident","CONTRACTORS","PEOPLE","39) 02 22 2018 Base Facility Rencoret Employee cut finger ","small cut"]
[40,"Contractor Zach lost control of a pump truck and the outriggers collided with rebar structure",null,"2018-02-23","Accident","CONTRACTORS","EQUIPMENT","40) 02 23 2018 Base Facility Pump Truck ZACH ","damage to construction rebar",1]
[41,"Contractor B. Layton got hit in the face by a wrench that he was using to tighten a bolt","first aid","2018-03-07","Accident","CONTRACTORS","PEOPLE","041) 03 07 2018 Summit contractor injury","bruise to upper lip"]
[42,"Contractor Casino cut thumb and pointing finger when sharpening knives","first aid","2018-03-22","Accident","CONTRACTORS","PEOPLE","042) 03 22 2018 Summit contractor injury","no stitches"]
[{"$f":"IF(B44<>\"\",A43+1,\"\")","v":43},"Contractor GHG (Base Facility) tripped and contusion to left knee prescribed Rx and 3 days off","medical","2018-04-11","Accident","CONTRACTORS","PEOPLE","043) 04 11 2018 Base Facility Contractor Accident Fall at the same level ","bruise knee, medication administered and 3 days off"]
[44,"Contractor Transep backed into the Observatory garage door",null,"2018-04-27","Accident","SUMMIT SITE","EQUIPMENT","044) 04 20 2018 Summit Contractor Property Damage ","minor damage to garage door"]
[45,"Contractor EIE got a small cut on hand while doing steelwork","first aid","2018-06-05","Accident","CONTRACTORS","PEOPLE","045) 06 05 2018 Summit contractor injury","small cut on hand"]
[46,"Contractor broke a sewage line and required cleanup and decontamination",null,"2018-04-27","Accident","CONTRACTORS","EQUIPMENT","046) 27 04 2018 Sewage spill on technical platform report","environmental cleanup"]
[47,"Contractor GHG was hit on the hand by hammer, hairline facture and time off","medical","2018-06-19","Accident","CONTRACTORS","PEOPLE","047) 06 19 2018 Base Facility Sub Contractor LEAC Accident ","hairline fracture to left finger"]
[48,"Contractor GHG was hit on the nose by a hook on a rope  - two stitches and two days off","medical","2018-08-02","Accident","CONTRACTORS","PEOPLE","048) 08 02 2018 Base Facility Constructora GHG Accident","cut to the nose requiring 2 stitches"]
[49,"Contractor EIE caught plastic covering of a pallet on fire while welding",null,"2018-08-16","Accident","CONTRACTORS","EQUIPMENT","049) 16 08 2018 Summit EIE's contractor minor fire","minor damage to materials due to welding outside the observatory"]
[50,"AURA-O contractor Transep rolled vehicle after servicing LSST",null,"2018-09-06","Accident","CONTRACTORS","EQUIPMENT","050) 09 06 2018 Contractor vehicle accident","damage to equipment due to a roll over of a AURA-O contractor that was servicing LSST",1]
[51,"LSST employee was struck by a poorly attached window of a lab bench","first aid","2018-09-13","Accident","LSST","PEOPLE","051) 09 13 2018 Tucson minor injury","minor cut to head and hand"]
[52,"Newly hired driver fell asleep at the wheel and hit the berm, no injuries",null,"2018-12-01","Accident","LSST","EQUIPMENT","052) 12 01 2018 Truck accident of LSST driver","minor damage to vehicle 393",1]
[53,"Contractor BL driver hit large rock in road, no injuries",null,"2018-12-18","Accident","CONTRACTORS","EQUIPMENT","053) 12 18 2018 Truck accident of Benjamin Leyton","broken radiator",1]
[54,"Contractor AMFFAL road accident, no injuries",null,"2019-02-26","Accident","CONTRACTORS","EQUIPMENT","054) 02 26 2019 Summit Truck Accident AMFFAL","damage to truck body work, broken front axle",1]
[55,"LSST SLAC Employee suffered muscle strain","first aid","2019-03-18","Accident","LSST","PEOPLE","055) 03 18 2019 SLAC First Aid Accident","muscle strain while wrenching"]
[56,"Base Facility GHG Contractor had scaffolding fall on him during dismantling, no injuries",null,"2019-03-25","Incident","CONTRACTORS","PEOPLE","056) 03 25 2019 Base Facility Constructora GHG Accident","no injuries"]
[57,"SLAC Contractor IN2P3 employees had arm caught between filter carousel and stationary structure","medical","2019-04-10","Accident","CONTRACTORS","PEOPLE","057) 04 12 2019 SLAC IN2P3 Accident","injury requiring corrective surgery and recovery time"]
[58,"LSST employee totalled vehicle 393 attempting to avoid a animal crossing road, no injuries",null,"2019-04-27","Accident","LSST","EQUIPMENT","058) 04 27 2019 LSST Site access road accident ","Pickup truck 393 was totalled",1]
[59,"SLAC Compressor Accident, compressor fell off cart and cause damage to compressor chassis",null,"2019-05-03","Accident","LSST","EQUIPMENT","059) 05 03 2019 SLAC Compressor Accident","slight damage to cryo compressor chassis"]
[60,"Base Facility GHG Contractor arc flash tempory blindness, but realeased to work same day, no perm. Damage","first aid","2019-05-03","Accident","CONTRACTORS","PEOPLE","060) 05 02 2019 Base Facility contractor arc flash ","temporary blindness, no permanent damage"]
[61,"Summit Road work contractor stalled enngine rolled back and ran into guard rail",null,"2019-05-07","Accident","CONTRACTORS","EQUIPMENT","061) 05 07 2019 Imopac dump truck stalled on road ","damaged guard rail",1]
[62,"SLAC cut finger using razor blade, no stitches","first aid","2019-05-07","Accident","LSST","PEOPLE","062) 05 07 2019 SLAC cut finger","fingercut by razor blade, first aid"]
[63,"GHG cleaning employee splashed with cleaning fluid in right eye","first aid","2019-06-28","Accident","CONTRACTORS","PEOPLE","063) 06 28 2019 GHG Employee right eye irritation ","cleaning chemcial in eye no long term damage"]
[64,"Aura vehicle rolled into embankment damage to exaust pipe and bumper",null,"2019-06-28","Accident","LSST","EQUIPMENT","064) 06 28 2019 AURA Vehicle Damage","vehicle runs into embankment, damage to exaust and bumper",1]
[""]
[""]
[""]
[""]
[""]
[""]
[""]
[""]
[""]
[""]
[""]
[""]
[""]
[""]
[""]
[""]
[""]
[""]
[""]
[""]
[""]
[""]
[""]
[""]
[""]
[""]
[""]
[""]
[""]
[""]
[""]
[""]
[""]
[""]
[""]
[""]
[""]
[""]
[""]
[""]
[""]
[""]
[{"$f":"IF(B108<>\"\",A107+1,\"\")","v":""}]
[""]
[""]
[""]
[""]
[""]
[""]
[""]
[""]
[""]
[""]
[""]
[""]
[""]
[""]
[""]
[""]
[""]
[""]
[""]
[""]
[""]
[""]
[""]
[""]
[""]
[""]
[""]
[""]
[""]
[""]
[""]
[""]
[""]
[""]
[""]
[""]
[""]
[""]
[""]
[""]
[""]
[""]
[""]
[""]
[""]
[""]
[""]
[""]
[""]
[""]
[""]
[""]
[""]
[""]
[""]
[""]
[""]
[""]
[""]
[""]
[""]
[""]
[""]
[{"$f":"IF(B172<>\"\",A171+1,\"\")","v":""}]
[""]
[""]
[""]
[""]
[""]
[""]
[""]
[""]
[""]
[""]
[""]
[""]
[""]
[""]
[""]
[""]
[""]
[""]
[""]
[""]
[""]
[""]
[""]
[""]
[""]
[""]
[""]
[""]
[""]
[""]
[""]
[""]
[""]
[""]
[""]
[""]
[""]
[""]
[""]
[""]
[""]
[""]
[""]
[""]
[""]
[""]
[""]
[""]
[""]
[""]
[""]
[""]
[""]
[""]
[""]
[""]
[""]
[""]
[""]
[""]
[""]
[""]
[""]
[{"$f":"IF(B236<>\"\",A235+1,\"\")","v":""}]
[""]
[""]
[""]
[""]
[""]
[""]
[""]
[""]
[""]
[""]
[""]
[""]
[""]
[""]
[""]
[""]
[""]
[""]
[""]
[""]
[""]
[""]
[""]
[""]
[""]
[""]
[""]
[""]
[""]
[""]
[""]
[""]
[""]
[""]
[""]
[""]
[""]
[""]
[""]
[""]
[""]
[""]
[""]
[""]
[""]
[""]
[""]
[""]
[""]
[""]
[""]
[""]
[""]
[""]
[""]
[""]
[""]
[""]
[""]
[""]
[""]
[""]
[""]
[{"$f":"IF(B300<>\"\",A299+1,\"\")","v":""}]
[""]
[""]
[""]
[""]
[""]
[""]
[""]
[""]
[""]
[""]
[""]
[""]
[""]
[""]
[""]
[""]
[""]
[""]
[""]
[""]
[""]
[""]
[""]
[""]
[""]
[""]
[""]
[""]
[""]
[""]
[""]
[""]
[""]
[""]
[""]
[""]
[""]
[""]
[""]
[""]
[""]
[""]
[""]
[""]
[""]
[""]
[""]
[""]
[""]
[""]
[""]
[""]
[""]
[""]
[""]
[""]
[""]
[""]
[""]
[""]
[""]
[""]
[""]
[{"$f":"IF(B364<>\"\",A363+1,\"\")","v":""}]
[""]
[""]
[""]
[""]
[""]
[""]
[""]
[""]
[""]
[""]
[""]
[""]
[""]
[""]
[""]
[""]
[""]
[""]
[""]
[""]
[""]
[""]
[""]
[""]
[""]
[""]
[""]
[""]
[""]
[""]
[""]

{"sheet":"Types","index":2,"n_rows":4,"n_cols":5,"rows_kept":4,"cut":false,"hidden":false,"merged":[]}
["Incident",null,"LSST",null,"PEOPLE"]
["Accident",null,"CONTRACTORS",null,"EQUIPMENT"]
[null,null,"SUMMIT SITE",null,"PROCESS"]
[null,null,"OTHERS"]